{"text_format":"3","workbook":"xlsx","n_sheets":3,"sheets":["Galimo kliento duomenys","Pardavimo prognozė ","Mėnesio svertinė prognozė"],"not_rendered":{"charts":1,"defined_names":10},"read":"whole","date_system":"1900"}

{"sheet":"Galimo kliento duomenys","index":0,"n_rows":9,"n_cols":10,"rows_kept":9,"merged":[[3,1,3,8]]}
[null,"Įmonės pavadinimas"]
[null,"Išsami galimų klientų sekimo priemonė"]
[null,{"$f":"TODAY()","v":"2018-07-25"}]
[null,{"$f":"Įmonės_pavadinimas","v":"Įmonės pavadinimas"},{"$nulls":7},"KONFIDENCIALI INFORMACIJA"]
[null,"Galimo kliento pavadinimas","Galimo kliento kontaktiniai duomenys","Galimo kliento \nšaltinis","Galimo kliento \nregionas","Galimo kliento \ntipas","Potenciali galimybė","Pardavimo \ntikimybė","Prognozės \npabaiga","Svertinė \nprognozė"]
[null,"A. Datum Corporation",{"$nulls":3},"Strateginis",{"v":300000,"d":"300,000.00 EUR"},{"v":0.9,"d":"90%"},"Sausis",{"$f":"IFERROR(IF(GalimoKlientoDuomenys[Pardavimo \ntikimybė]<>\"\",GalimoKlientoDuomenys[Pardavimo \ntikimybė]*GalimoKlientoDuomenys[Potenciali galimybė],\"\"),\"\")","v":{"v":270000,"d":"270,000.00 EUR"}}]
[null,"Adventure Works",{"$nulls":3},"Strateginis",{"v":200000,"d":"200,000.00 EUR"},{"v":0.1,"d":"10%"},"Vasaris",{"$f":"IFERROR(IF(GalimoKlientoDuomenys[Pardavimo \ntikimybė]<>\"\",GalimoKlientoDuomenys[Pardavimo \ntikimybė]*GalimoKlientoDuomenys[Potenciali galimybė],\"\"),\"\")","v":{"v":20000,"d":"20,000.00 EUR"}}]
[null,"Alpine Ski House",{"$nulls":3},"Taktinis",{"v":100000,"d":"100,000.00 EUR"},{"v":0.2,"d":"20%"},"Kovas",{"$f":"IFERROR(IF(GalimoKlientoDuomenys[Pardavimo \ntikimybė]<>\"\",GalimoKlientoDuomenys[Pardavimo \ntikimybė]*GalimoKlientoDuomenys[Potenciali galimybė],\"\"),\"\")","v":{"v":20000,"d":"20,000.00 EUR"}}]
[null,"Suma",{"$nulls":4},{"$f":"SUBTOTAL(109,GalimoKlientoDuomenys[Potenciali galimybė])","v":{"v":600000,"d":"600,000.00 EUR"}},null,null,{"$f":"SUBTOTAL(109,GalimoKlientoDuomenys[Svertinė \nprognozė])","v":{"v":310000,"d":"310,000.00 EUR"}}]

{"sheet":"Pardavimo prognozė ","index":1,"n_rows":21,"n_cols":14,"rows_kept":21,"merged":[[3,1,3,11],[3,12,3,13]]}
[null,{"$f":"Įmonės_pavadinimas","v":"Įmonės pavadinimas"}]
[null,"Pardavimo prognozė"]
[null,{"$f":"SekimoPriemonėsData","v":"2018-07-25"}]
[null,{"$f":"Įmonės_pavadinimas","v":"Įmonės pavadinimas"},{"$nulls":10},"KONFIDENCIALI INFORMACIJA"]
[null,"Galimo kliento pavadinimas","Sausio \nprognozė","Vasario \nprognozė","Kovao\nprognozė","Balandio\nprognozė","Gegužo\nprognozė","Birželio\nprognozė","Liepo\nprognozė","Rugpjūtio \nprognozė","RugsėJio\nprognozė","Spalio\nprognozė","Lapkritio\nprognozė","Gruodio\nprognozė"]
[null,{"$f":"IFERROR(IF(AND(GalimoKlientoDuomenys[Galimo kliento pavadinimas] <> \"\", ROW(PardavimoPrognozė[Galimo kliento pavadinimas])<>PaskutinisĮrašas),GalimoKlientoDuomenys[Galimo kliento pavadinimas], \"\"),\"\")","v":"A. Datum Corporation"},{"$f":"IFERROR(IF(GalimoKlientoDuomenys[Prognozės \npabaiga] <>\"\",IF(GalimoKlientoDuomenys[Prognozės \npabaiga]= \"Sausis\",GalimoKlientoDuomenys[Svertinė \nprognozė],0),\"\"),\"\")","v":{"v":270000,"d":"270,000 EUR"}},{"$f":"IFERROR(IF(GalimoKlientoDuomenys[Prognozės \npabaiga] <>\"\",IF(GalimoKlientoDuomenys[Prognozės \npabaiga]= \"Vasaris\",GalimoKlientoDuomenys[Svertinė \nprognozė],0),\"\"),\"\")","v":{"v":0,"d":"0 EUR"}},{"$f":"IFERROR(IF(GalimoKlientoDuomenys[Prognozės \npabaiga] <>\"\",IF(GalimoKlientoDuomenys[Prognozės \npabaiga]= \"Kovas\",GalimoKlientoDuomenys[Svertinė \nprognozė],0),\"\"),\"\")","v":{"v":0,"d":"0 EUR"}},{"$f":"IFERROR(IF(GalimoKlientoDuomenys[Prognozės \npabaiga] <>\"\",IF(GalimoKlientoDuomenys[Prognozės \npabaiga]= \"Balandis\",GalimoKlientoDuomenys[Svertinė \nprognozė],0),\"\"),\"\")","v":{"v":0,"d":"0 EUR"}},{"$f":"IFERROR(IF(GalimoKlientoDuomenys[Prognozės \npabaiga] <>\"\",IF(GalimoKlientoDuomenys[Prognozės \npabaiga]= \"Gegužė\",GalimoKlientoDuomenys[Svertinė \nprognozė],0),\"\"),\"\")","v":{"v":0,"d":"0 EUR"}},{"$f":"IFERROR(IF(GalimoKlientoDuomenys[Prognozės \npabaiga] <>\"\",IF(GalimoKlientoDuomenys[Prognozės \npabaiga]= \"Birželis\",GalimoKlientoDuomenys[Svertinė \nprognozė],0),\"\"),\"\")","v":{"v":0,"d":"0 EUR"}},{"$f":"IFERROR(IF(GalimoKlientoDuomenys[Prognozės \npabaiga] <>\"\",IF(GalimoKlientoDuomenys[Prognozės \npabaiga]= \"Liepa\",GalimoKlientoDuomenys[Svertinė \nprognozė],0),\"\"),\"\")","v":{"v":0,"d":"0 EUR"}},{"$f":"IFERROR(IF(GalimoKlientoDuomenys[Prognozės \npabaiga] <>\"\",IF(GalimoKlientoDuomenys[Prognozės \npabaiga]= \"Rugpjūtis\",GalimoKlientoDuomenys[Svertinė \nprognozė],0),\"\"),\"\")","v":{"v":0,"d":"0 EUR"}},{"$f":"IFERROR(IF(GalimoKlientoDuomenys[Prognozės \npabaiga] <>\"\",IF(GalimoKlientoDuomenys[Prognozės \npabaiga]= \"RugsėJis\",GalimoKlientoDuomenys[Svertinė \nprognozė],0),\"\"),\"\")","v":{"v":0,"d":"0 EUR"}},{"$f":"IFERROR(IF(GalimoKlientoDuomenys[Prognozės \npabaiga] <>\"\",IF(GalimoKlientoDuomenys[Prognozės \npabaiga]= \"Spalis\",GalimoKlientoDuomenys[Svertinė \nprognozė],0),\"\"),\"\")","v":{"v":0,"d":"0 EUR"}},{"$f":"IFERROR(IF(GalimoKlientoDuomenys[Prognozės \npabaiga] <>\"\",IF(GalimoKlientoDuomenys[Prognozės \npabaiga]= \"Lapkritis\",GalimoKlientoDuomenys[Svertinė \nprognozė],0),\"\"),\"\")","v":{"v":0,"d":"0 EUR"}},{"$f":"IFERROR(IF(GalimoKlientoDuomenys[Prognozės \npabaiga] <>\"\",IF(GalimoKlientoDuomenys[Prognozės \npabaiga]= \"Gruodis\",GalimoKlientoDuomenys[Svertinė \nprognozė],0),\"\"),\"\")","v":{"v":0,"d":"0 EUR"}}]
[null,{"$f":"IFERROR(IF(AND(GalimoKlientoDuomenys[Galimo kliento pavadinimas] <> \"\", ROW(PardavimoPrognozė[Galimo kliento pavadinimas])<>PaskutinisĮrašas),GalimoKlientoDuomenys[Galimo kliento pavadinimas], \"\"),\"\")","v":"Adventure Works"},{"$f":"IFERROR(IF(GalimoKlientoDuomenys[Prognozės \npabaiga] <>\"\",IF(GalimoKlientoDuomenys[Prognozės \npabaiga]= \"Sausis\",GalimoKlientoDuomenys[Svertinė \nprognozė],0),\"\"),\"\")","v":{"v":0,"d":"0 EUR"}},{"$f":"IFERROR(IF(GalimoKlientoDuomenys[Prognozės \npabaiga] <>\"\",IF(GalimoKlientoDuomenys[Prognozės \npabaiga]= \"Vasaris\",GalimoKlientoDuomenys[Svertinė \nprognozė],0),\"\"),\"\")","v":{"v":20000,"d":"20,000 EUR"}},{"$f":"IFERROR(IF(GalimoKlientoDuomenys[Prognozės \npabaiga] <>\"\",IF(GalimoKlientoDuomenys[Prognozės \npabaiga]= \"Kovas\",GalimoKlientoDuomenys[Svertinė \nprognozė],0),\"\"),\"\")","v":{"v":0,"d":"0 EUR"}},{"$f":"IFERROR(IF(GalimoKlientoDuomenys[Prognozės \npabaiga] <>\"\",IF(GalimoKlientoDuomenys[Prognozės \npabaiga]= \"Balandis\",GalimoKlientoDuomenys[Svertinė \nprognozė],0),\"\"),\"\")","v":{"v":0,"d":"0 EUR"}},{"$f":"IFERROR(IF(GalimoKlientoDuomenys[Prognozės \npabaiga] <>\"\",IF(GalimoKlientoDuomenys[Prognozės \npabaiga]= \"Gegužė\",GalimoKlientoDuomenys[Svertinė \nprognozė],0),\"\"),\"\")","v":{"v":0,"d":"0 EUR"}},{"$f":"IFERROR(IF(GalimoKlientoDuomenys[Prognozės \npabaiga] <>\"\",IF(GalimoKlientoDuomenys[Prognozės \npabaiga]= \"Birželis\",GalimoKlientoDuomenys[Svertinė \nprognozė],0),\"\"),\"\")","v":{"v":0,"d":"0 EUR"}},{"$f":"IFERROR(IF(GalimoKlientoDuomenys[Prognozės \npabaiga] <>\"\",IF(GalimoKlientoDuomenys[Prognozės \npabaiga]= \"Liepa\",GalimoKlientoDuomenys[Svertinė \nprognozė],0),\"\"),\"\")","v":{"v":0,"d":"0 EUR"}},{"$f":"IFERROR(IF(GalimoKlientoDuomenys[Prognozės \npabaiga] <>\"\",IF(GalimoKlientoDuomenys[Prognozės \npabaiga]= \"Rugpjūtis\",GalimoKlientoDuomenys[Svertinė \nprognozė],0),\"\"),\"\")","v":{"v":0,"d":"0 EUR"}},{"$f":"IFERROR(IF(GalimoKlientoDuomenys[Prognozės \npabaiga] <>\"\",IF(GalimoKlientoDuomenys[Prognozės \npabaiga]= \"RugsėJis\",GalimoKlientoDuomenys[Svertinė \nprognozė],0),\"\"),\"\")","v":{"v":0,"d":"0 EUR"}},{"$f":"IFERROR(IF(GalimoKlientoDuomenys[Prognozės \npabaiga] <>\"\",IF(GalimoKlientoDuomenys[Prognozės \npabaiga]= \"Spalis\",GalimoKlientoDuomenys[Svertinė \nprognozė],0),\"\"),\"\")","v":{"v":0,"d":"0 EUR"}},{"$f":"IFERROR(IF(GalimoKlientoDuomenys[Prognozės \npabaiga] <>\"\",IF(GalimoKlientoDuomenys[Prognozės \npabaiga]= \"Lapkritis\",GalimoKlientoDuomenys[Svertinė \nprognozė],0),\"\"),\"\")","v":{"v":0,"d":"0 EUR"}},{"$f":"IFERROR(IF(GalimoKlientoDuomenys[Prognozės \npabaiga] <>\"\",IF(GalimoKlientoDuomenys[Prognozės \npabaiga]= \"Gruodis\",GalimoKlientoDuomenys[Svertinė \nprognozė],0),\"\"),\"\")","v":{"v":0,"d":"0 EUR"}}]
[null,{"$f":"IFERROR(IF(AND(GalimoKlientoDuomenys[Galimo kliento pavadinimas] <> \"\", ROW(PardavimoPrognozė[Galimo kliento pavadinimas])<>PaskutinisĮrašas),GalimoKlientoDuomenys[Galimo kliento pavadinimas], \"\"),\"\")","v":"Alpine Ski House"},{"$f":"IFERROR(IF(GalimoKlientoDuomenys[Prognozės \npabaiga] <>\"\",IF(GalimoKlientoDuomenys[Prognozės \npabaiga]= \"Sausis\",GalimoKlientoDuomenys[Svertinė \nprognozė],0),\"\"),\"\")","v":{"v":0,"d":"0 EUR"}},{"$f":"IFERROR(IF(GalimoKlientoDuomenys[Prognozės \npabaiga] <>\"\",IF(GalimoKlientoDuomenys[Prognozės \npabaiga]= \"Vasaris\",GalimoKlientoDuomenys[Svertinė \nprognozė],0),\"\"),\"\")","v":{"v":0,"d":"0 EUR"}},{"$f":"IFERROR(IF(GalimoKlientoDuomenys[Prognozės \npabaiga] <>\"\",IF(GalimoKlientoDuomenys[Prognozės \npabaiga]= \"Kovas\",GalimoKlientoDuomenys[Svertinė \nprognozė],0),\"\"),\"\")","v":{"v":20000,"d":"20,000 EUR"}},{"$f":"IFERROR(IF(GalimoKlientoDuomenys[Prognozės \npabaiga] <>\"\",IF(GalimoKlientoDuomenys[Prognozės \npabaiga]= \"Balandis\",GalimoKlientoDuomenys[Svertinė \nprognozė],0),\"\"),\"\")","v":{"v":0,"d":"0 EUR"}},{"$f":"IFERROR(IF(GalimoKlientoDuomenys[Prognozės \npabaiga] <>\"\",IF(GalimoKlientoDuomenys[Prognozės \npabaiga]= \"Gegužė\",GalimoKlientoDuomenys[Svertinė \nprognozė],0),\"\"),\"\")","v":{"v":0,"d":"0 EUR"}},{"$f":"IFERROR(IF(GalimoKlientoDuomenys[Prognozės \npabaiga] <>\"\",IF(GalimoKlientoDuomenys[Prognozės \npabaiga]= \"Birželis\",GalimoKlientoDuomenys[Svertinė \nprognozė],0),\"\"),\"\")","v":{"v":0,"d":"0 EUR"}},{"$f":"IFERROR(IF(GalimoKlientoDuomenys[Prognozės \npabaiga] <>\"\",IF(GalimoKlientoDuomenys[Prognozės \npabaiga]= \"Liepa\",GalimoKlientoDuomenys[Svertinė \nprognozė],0),\"\"),\"\")","v":{"v":0,"d":"0 EUR"}},{"$f":"IFERROR(IF(GalimoKlientoDuomenys[Prognozės \npabaiga] <>\"\",IF(GalimoKlientoDuomenys[Prognozės \npabaiga]= \"Rugpjūtis\",GalimoKlientoDuomenys[Svertinė \nprognozė],0),\"\"),\"\")","v":{"v":0,"d":"0 EUR"}},{"$f":"IFERROR(IF(GalimoKlientoDuomenys[Prognozės \npabaiga] <>\"\",IF(GalimoKlientoDuomenys[Prognozės \npabaiga]= \"RugsėJis\",GalimoKlientoDuomenys[Svertinė \nprognozė],0),\"\"),\"\")","v":{"v":0,"d":"0 EUR"}},{"$f":"IFERROR(IF(GalimoKlientoDuomenys[Prognozės \npabaiga] <>\"\",IF(GalimoKlientoDuomenys[Prognozės \npabaiga]= \"Spalis\",GalimoKlientoDuomenys[Svertinė \nprognozė],0),\"\"),\"\")","v":{"v":0,"d":"0 EUR"}},{"$f":"IFERROR(IF(GalimoKlientoDuomenys[Prognozės \npabaiga] <>\"\",IF(GalimoKlientoDuomenys[Prognozės \npabaiga]= \"Lapkritis\",GalimoKlientoDuomenys[Svertinė \nprognozė],0),\"\"),\"\")","v":{"v":0,"d":"0 EUR"}},{"$f":"IFERROR(IF(GalimoKlientoDuomenys[Prognozės \npabaiga] <>\"\",IF(GalimoKlientoDuomenys[Prognozės \npabaiga]= \"Gruodis\",GalimoKlientoDuomenys[Svertinė \nprognozė],0),\"\"),\"\")","v":{"v":0,"d":"0 EUR"}}]
[null,{"$f":"IFERROR(IF(AND(GalimoKlientoDuomenys[Galimo kliento pavadinimas] <> \"\", ROW(PardavimoPrognozė[Galimo kliento pavadinimas])<>PaskutinisĮrašas),GalimoKlientoDuomenys[Galimo kliento pavadinimas], \"\"),\"\")","v":""},{"$f":"IFERROR(IF(GalimoKlientoDuomenys[Prognozės \npabaiga] <>\"\",IF(GalimoKlientoDuomenys[Prognozės \npabaiga]= \"Sausis\",GalimoKlientoDuomenys[Svertinė \nprognozė],0),\"\"),\"\")","v":""},{"$f":"IFERROR(IF(GalimoKlientoDuomenys[Prognozės \npabaiga] <>\"\",IF(GalimoKlientoDuomenys[Prognozės \npabaiga]= \"Vasaris\",GalimoKlientoDuomenys[Svertinė \nprognozė],0),\"\"),\"\")","v":""},{"$f":"IFERROR(IF(GalimoKlientoDuomenys[Prognozės \npabaiga] <>\"\",IF(GalimoKlientoDuomenys[Prognozės \npabaiga]= \"Kovas\",GalimoKlientoDuomenys[Svertinė \nprognozė],0),\"\"),\"\")","v":""},{"$f":"IFERROR(IF(GalimoKlientoDuomenys[Prognozės \npabaiga] <>\"\",IF(GalimoKlientoDuomenys[Prognozės \npabaiga]= \"Balandis\",GalimoKlientoDuomenys[Svertinė \nprognozė],0),\"\"),\"\")","v":""},{"$f":"IFERROR(IF(GalimoKlientoDuomenys[Prognozės \npabaiga] <>\"\",IF(GalimoKlientoDuomenys[Prognozės \npabaiga]= \"Gegužė\",GalimoKlientoDuomenys[Svertinė \nprognozė],0),\"\"),\"\")","v":""},{"$f":"IFERROR(IF(GalimoKlientoDuomenys[Prognozės \npabaiga] <>\"\",IF(GalimoKlientoDuomenys[Prognozės \npabaiga]= \"Birželis\",GalimoKlientoDuomenys[Svertinė \nprognozė],0),\"\"),\"\")","v":""},{"$f":"IFERROR(IF(GalimoKlientoDuomenys[Prognozės \npabaiga] <>\"\",IF(GalimoKlientoDuomenys[Prognozės \npabaiga]= \"Liepa\",GalimoKlientoDuomenys[Svertinė \nprognozė],0),\"\"),\"\")","v":""},{"$f":"IFERROR(IF(GalimoKlientoDuomenys[Prognozės \npabaiga] <>\"\",IF(GalimoKlientoDuomenys[Prognozės \npabaiga]= \"Rugpjūtis\",GalimoKlientoDuomenys[Svertinė \nprognozė],0),\"\"),\"\")","v":""},{"$f":"IFERROR(IF(GalimoKlientoDuomenys[Prognozės \npabaiga] <>\"\",IF(GalimoKlientoDuomenys[Prognozės \npabaiga]= \"RugsėJis\",GalimoKlientoDuomenys[Svertinė \nprognozė],0),\"\"),\"\")","v":""},{"$f":"IFERROR(IF(GalimoKlientoDuomenys[Prognozės \npabaiga] <>\"\",IF(GalimoKlientoDuomenys[Prognozės \npabaiga]= \"Spalis\",GalimoKlientoDuomenys[Svertinė \nprognozė],0),\"\"),\"\")","v":""},{"$f":"IFERROR(IF(GalimoKlientoDuomenys[Prognozės \npabaiga] <>\"\",IF(GalimoKlientoDuomenys[Prognozės \npabaiga]= \"Lapkritis\",GalimoKlientoDuomenys[Svertinė \nprognozė],0),\"\"),\"\")","v":""},{"$f":"IFERROR(IF(GalimoKlientoDuomenys[Prognozės \npabaiga] <>\"\",IF(GalimoKlientoDuomenys[Prognozės \npabaiga]= \"Gruodis\",GalimoKlientoDuomenys[Svertinė \nprognozė],0),\"\"),\"\")","v":""}]
[null,{"$f":"IFERROR(IF(AND(GalimoKlientoDuomenys[Galimo kliento pavadinimas] <> \"\", ROW(PardavimoPrognozė[Galimo kliento pavadinimas])<>PaskutinisĮrašas),GalimoKlientoDuomenys[Galimo kliento pavadinimas], \"\"),\"\")","v":""},{"$f":"IFERROR(IF(GalimoKlientoDuomenys[Prognozės \npabaiga] <>\"\",IF(GalimoKlientoDuomenys[Prognozės \npabaiga]= \"Sausis\",GalimoKlientoDuomenys[Svertinė \nprognozė],0),\"\"),\"\")","v":""},{"$f":"IFERROR(IF(GalimoKlientoDuomenys[Prognozės \npabaiga] <>\"\",IF(GalimoKlientoDuomenys[Prognozės \npabaiga]= \"Vasaris\",GalimoKlientoDuomenys[Svertinė \nprognozė],0),\"\"),\"\")","v":""},{"$f":"IFERROR(IF(GalimoKlientoDuomenys[Prognozės \npabaiga] <>\"\",IF(GalimoKlientoDuomenys[Prognozės \npabaiga]= \"Kovas\",GalimoKlientoDuomenys[Svertinė \nprognozė],0),\"\"),\"\")","v":""},{"$f":"IFERROR(IF(GalimoKlientoDuomenys[Prognozės \npabaiga] <>\"\",IF(GalimoKlientoDuomenys[Prognozės \npabaiga]= \"Balandis\",GalimoKlientoDuomenys[Svertinė \nprognozė],0),\"\"),\"\")","v":""},{"$f":"IFERROR(IF(GalimoKlientoDuomenys[Prognozės \npabaiga] <>\"\",IF(GalimoKlientoDuomenys[Prognozės \npabaiga]= \"Gegužė\",GalimoKlientoDuomenys[Svertinė \nprognozė],0),\"\"),\"\")","v":""},{"$f":"IFERROR(IF(GalimoKlientoDuomenys[Prognozės \npabaiga] <>\"\",IF(GalimoKlientoDuomenys[Prognozės \npabaiga]= \"Birželis\",GalimoKlientoDuomenys[Svertinė \nprognozė],0),\"\"),\"\")","v":""},{"$f":"IFERROR(IF(GalimoKlientoDuomenys[Prognozės \npabaiga] <>\"\",IF(GalimoKlientoDuomenys[Prognozės \npabaiga]= \"Liepa\",GalimoKlientoDuomenys[Svertinė \nprognozė],0),\"\"),\"\")","v":""},{"$f":"IFERROR(IF(GalimoKlientoDuomenys[Prognozės \npabaiga] <>\"\",IF(GalimoKlientoDuomenys[Prognozės \npabaiga]= \"Rugpjūtis\",GalimoKlientoDuomenys[Svertinė \nprognozė],0),\"\"),\"\")","v":""},{"$f":"IFERROR(IF(GalimoKlientoDuomenys[Prognozės \npabaiga] <>\"\",IF(GalimoKlientoDuomenys[Prognozės \npabaiga]= \"RugsėJis\",GalimoKlientoDuomenys[Svertinė \nprognozė],0),\"\"),\"\")","v":""},{"$f":"IFERROR(IF(GalimoKlientoDuomenys[Prognozės \npabaiga] <>\"\",IF(GalimoKlientoDuomenys[Prognozės \npabaiga]= \"Spalis\",GalimoKlientoDuomenys[Svertinė \nprognozė],0),\"\"),\"\")","v":""},{"$f":"IFERROR(IF(GalimoKlientoDuomenys[Prognozės \npabaiga] <>\"\",IF(GalimoKlientoDuomenys[Prognozės \npabaiga]= \"Lapkritis\",GalimoKlientoDuomenys[Svertinė \nprognozė],0),\"\"),\"\")","v":""},{"$f":"IFERROR(IF(GalimoKlientoDuomenys[Prognozės \npabaiga] <>\"\",IF(GalimoKlientoDuomenys[Prognozės \npabaiga]= \"Gruodis\",GalimoKlientoDuomenys[Svertinė \nprognozė],0),\"\"),\"\")","v":""}]
[null,{"$f":"IFERROR(IF(AND(GalimoKlientoDuomenys[Galimo kliento pavadinimas] <> \"\", ROW(PardavimoPrognozė[Galimo kliento pavadinimas])<>PaskutinisĮrašas),GalimoKlientoDuomenys[Galimo kliento pavadinimas], \"\"),\"\")","v":""},{"$f":"IFERROR(IF(GalimoKlientoDuomenys[Prognozės \npabaiga] <>\"\",IF(GalimoKlientoDuomenys[Prognozės \npabaiga]= \"Sausis\",GalimoKlientoDuomenys[Svertinė \nprognozė],0),\"\"),\"\")","v":""},{"$f":"IFERROR(IF(GalimoKlientoDuomenys[Prognozės \npabaiga] <>\"\",IF(GalimoKlientoDuomenys[Prognozės \npabaiga]= \"Vasaris\",GalimoKlientoDuomenys[Svertinė \nprognozė],0),\"\"),\"\")","v":""},{"$f":"IFERROR(IF(GalimoKlientoDuomenys[Prognozės \npabaiga] <>\"\",IF(GalimoKlientoDuomenys[Prognozės \npabaiga]= \"Kovas\",GalimoKlientoDuomenys[Svertinė \nprognozė],0),\"\"),\"\")","v":""},{"$f":"IFERROR(IF(GalimoKlientoDuomenys[Prognozės \npabaiga] <>\"\",IF(GalimoKlientoDuomenys[Prognozės \npabaiga]= \"Balandis\",GalimoKlientoDuomenys[Svertinė \nprognozė],0),\"\"),\"\")","v":""},{"$f":"IFERROR(IF(GalimoKlientoDuomenys[Prognozės \npabaiga] <>\"\",IF(GalimoKlientoDuomenys[Prognozės \npabaiga]= \"Gegužė\",GalimoKlientoDuomenys[Svertinė \nprognozė],0),\"\"),\"\")","v":""},{"$f":"IFERROR(IF(GalimoKlientoDuomenys[Prognozės \npabaiga] <>\"\",IF(GalimoKlientoDuomenys[Prognozės \npabaiga]= \"Birželis\",GalimoKlientoDuomenys[Svertinė \nprognozė],0),\"\"),\"\")","v":""},{"$f":"IFERROR(IF(GalimoKlientoDuomenys[Prognozės \npabaiga] <>\"\",IF(GalimoKlientoDuomenys[Prognozės \npabaiga]= \"Liepa\",GalimoKlientoDuomenys[Svertinė \nprognozė],0),\"\"),\"\")","v":""},{"$f":"IFERROR(IF(GalimoKlientoDuomenys[Prognozės \npabaiga] <>\"\",IF(GalimoKlientoDuomenys[Prognozės \npabaiga]= \"Rugpjūtis\",GalimoKlientoDuomenys[Svertinė \nprognozė],0),\"\"),\"\")","v":""},{"$f":"IFERROR(IF(GalimoKlientoDuomenys[Prognozės \npabaiga] <>\"\",IF(GalimoKlientoDuomenys[Prognozės \npabaiga]= \"RugsėJis\",GalimoKlientoDuomenys[Svertinė \nprognozė],0),\"\"),\"\")","v":""},{"$f":"IFERROR(IF(GalimoKlientoDuomenys[Prognozės \npabaiga] <>\"\",IF(GalimoKlientoDuomenys[Prognozės \npabaiga]= \"Spalis\",GalimoKlientoDuomenys[Svertinė \nprognozė],0),\"\"),\"\")","v":""},{"$f":"IFERROR(IF(GalimoKlientoDuomenys[Prognozės \npabaiga] <>\"\",IF(GalimoKlientoDuomenys[Prognozės \npabaiga]= \"Lapkritis\",GalimoKlientoDuomenys[Svertinė \nprognozė],0),\"\"),\"\")","v":""},{"$f":"IFERROR(IF(GalimoKlientoDuomenys[Prognozės \npabaiga] <>\"\",IF(GalimoKlientoDuomenys[Prognozės \npabaiga]= \"Gruodis\",GalimoKlientoDuomenys[Svertinė \nprognozė],0),\"\"),\"\")","v":""}]
[null,{"$f":"IFERROR(IF(AND(GalimoKlientoDuomenys[Galimo kliento pavadinimas] <> \"\", ROW(PardavimoPrognozė[Galimo kliento pavadinimas])<>PaskutinisĮrašas),GalimoKlientoDuomenys[Galimo kliento pavadinimas], \"\"),\"\")","v":""},{"$f":"IFERROR(IF(GalimoKlientoDuomenys[Prognozės \npabaiga] <>\"\",IF(GalimoKlientoDuomenys[Prognozės \npabaiga]= \"Sausis\",GalimoKlientoDuomenys[Svertinė \nprognozė],0),\"\"),\"\")","v":""},{"$f":"IFERROR(IF(GalimoKlientoDuomenys[Prognozės \npabaiga] <>\"\",IF(GalimoKlientoDuomenys[Prognozės \npabaiga]= \"Vasaris\",GalimoKlientoDuomenys[Svertinė \nprognozė],0),\"\"),\"\")","v":""},{"$f":"IFERROR(IF(GalimoKlientoDuomenys[Prognozės \npabaiga] <>\"\",IF(GalimoKlientoDuomenys[Prognozės \npabaiga]= \"Kovas\",GalimoKlientoDuomenys[Svertinė \nprognozė],0),\"\"),\"\")","v":""},{"$f":"IFERROR(IF(GalimoKlientoDuomenys[Prognozės \npabaiga] <>\"\",IF(GalimoKlientoDuomenys[Prognozės \npabaiga]= \"Balandis\",GalimoKlientoDuomenys[Svertinė \nprognozė],0),\"\"),\"\")","v":""},{"$f":"IFERROR(IF(GalimoKlientoDuomenys[Prognozės \npabaiga] <>\"\",IF(GalimoKlientoDuomenys[Prognozės \npabaiga]= \"Gegužė\",GalimoKlientoDuomenys[Svertinė \nprognozė],0),\"\"),\"\")","v":""},{"$f":"IFERROR(IF(GalimoKlientoDuomenys[Prognozės \npabaiga] <>\"\",IF(GalimoKlientoDuomenys[Prognozės \npabaiga]= \"Birželis\",GalimoKlientoDuomenys[Svertinė \nprognozė],0),\"\"),\"\")","v":""},{"$f":"IFERROR(IF(GalimoKlientoDuomenys[Prognozės \npabaiga] <>\"\",IF(GalimoKlientoDuomenys[Prognozės \npabaiga]= \"Liepa\",GalimoKlientoDuomenys[Svertinė \nprognozė],0),\"\"),\"\")","v":""},{"$f":"IFERROR(IF(GalimoKlientoDuomenys[Prognozės \npabaiga] <>\"\",IF(GalimoKlientoDuomenys[Prognozės \npabaiga]= \"Rugpjūtis\",GalimoKlientoDuomenys[Svertinė \nprognozė],0),\"\"),\"\")","v":""},{"$f":"IFERROR(IF(GalimoKlientoDuomenys[Prognozės \npabaiga] <>\"\",IF(GalimoKlientoDuomenys[Prognozės \npabaiga]= \"RugsėJis\",GalimoKlientoDuomenys[Svertinė \nprognozė],0),\"\"),\"\")","v":""},{"$f":"IFERROR(IF(GalimoKlientoDuomenys[Prognozės \npabaiga] <>\"\",IF(GalimoKlientoDuomenys[Prognozės \npabaiga]= \"Spalis\",GalimoKlientoDuomenys[Svertinė \nprognozė],0),\"\"),\"\")","v":""},{"$f":"IFERROR(IF(GalimoKlientoDuomenys[Prognozės \npabaiga] <>\"\",IF(GalimoKlientoDuomenys[Prognozės \npabaiga]= \"Lapkritis\",GalimoKlientoDuomenys[Svertinė \nprognozė],0),\"\"),\"\")","v":""},{"$f":"IFERROR(IF(GalimoKlientoDuomenys[Prognozės \npabaiga] <>\"\",IF(GalimoKlientoDuomenys[Prognozės \npabaiga]= \"Gruodis\",GalimoKlientoDuomenys[Svertinė \nprognozė],0),\"\"),\"\")","v":""}]
[null,{"$f":"IFERROR(IF(AND(GalimoKlientoDuomenys[Galimo kliento pavadinimas] <> \"\", ROW(PardavimoPrognozė[Galimo kliento pavadinimas])<>PaskutinisĮrašas),GalimoKlientoDuomenys[Galimo kliento pavadinimas], \"\"),\"\")","v":""},{"$f":"IFERROR(IF(GalimoKlientoDuomenys[Prognozės \npabaiga] <>\"\",IF(GalimoKlientoDuomenys[Prognozės \npabaiga]= \"Sausis\",GalimoKlientoDuomenys[Svertinė \nprognozė],0),\"\"),\"\")","v":""},{"$f":"IFERROR(IF(GalimoKlientoDuomenys[Prognozės \npabaiga] <>\"\",IF(GalimoKlientoDuomenys[Prognozės \npabaiga]= \"Vasaris\",GalimoKlientoDuomenys[Svertinė \nprognozė],0),\"\"),\"\")","v":""},{"$f":"IFERROR(IF(GalimoKlientoDuomenys[Prognozės \npabaiga] <>\"\",IF(GalimoKlientoDuomenys[Prognozės \npabaiga]= \"Kovas\",GalimoKlientoDuomenys[Svertinė \nprognozė],0),\"\"),\"\")","v":""},{"$f":"IFERROR(IF(GalimoKlientoDuomenys[Prognozės \npabaiga] <>\"\",IF(GalimoKlientoDuomenys[Prognozės \npabaiga]= \"Balandis\",GalimoKlientoDuomenys[Svertinė \nprognozė],0),\"\"),\"\")","v":""},{"$f":"IFERROR(IF(GalimoKlientoDuomenys[Prognozės \npabaiga] <>\"\",IF(GalimoKlientoDuomenys[Prognozės \npabaiga]= \"Gegužė\",GalimoKlientoDuomenys[Svertinė \nprognozė],0),\"\"),\"\")","v":""},{"$f":"IFERROR(IF(GalimoKlientoDuomenys[Prognozės \npabaiga] <>\"\",IF(GalimoKlientoDuomenys[Prognozės \npabaiga]= \"Birželis\",GalimoKlientoDuomenys[Svertinė \nprognozė],0),\"\"),\"\")","v":""},{"$f":"IFERROR(IF(GalimoKlientoDuomenys[Prognozės \npabaiga] <>\"\",IF(GalimoKlientoDuomenys[Prognozės \npabaiga]= \"Liepa\",GalimoKlientoDuomenys[Svertinė \nprognozė],0),\"\"),\"\")","v":""},{"$f":"IFERROR(IF(GalimoKlientoDuomenys[Prognozės \npabaiga] <>\"\",IF(GalimoKlientoDuomenys[Prognozės \npabaiga]= \"Rugpjūtis\",GalimoKlientoDuomenys[Svertinė \nprognozė],0),\"\"),\"\")","v":""},{"$f":"IFERROR(IF(GalimoKlientoDuomenys[Prognozės \npabaiga] <>\"\",IF(GalimoKlientoDuomenys[Prognozės \npabaiga]= \"RugsėJis\",GalimoKlientoDuomenys[Svertinė \nprognozė],0),\"\"),\"\")","v":""},{"$f":"IFERROR(IF(GalimoKlientoDuomenys[Prognozės \npabaiga] <>\"\",IF(GalimoKlientoDuomenys[Prognozės \npabaiga]= \"Spalis\",GalimoKlientoDuomenys[Svertinė \nprognozė],0),\"\"),\"\")","v":""},{"$f":"IFERROR(IF(GalimoKlientoDuomenys[Prognozės \npabaiga] <>\"\",IF(GalimoKlientoDuomenys[Prognozės \npabaiga]= \"Lapkritis\",GalimoKlientoDuomenys[Svertinė \nprognozė],0),\"\"),\"\")","v":""},{"$f":"IFERROR(IF(GalimoKlientoDuomenys[Prognozės \npabaiga] <>\"\",IF(GalimoKlientoDuomenys[Prognozės \npabaiga]= \"Gruodis\",GalimoKlientoDuomenys[Svertinė \nprognozė],0),\"\"),\"\")","v":""}]
[null,{"$f":"IFERROR(IF(AND(GalimoKlientoDuomenys[Galimo kliento pavadinimas] <> \"\", ROW(PardavimoPrognozė[Galimo kliento pavadinimas])<>PaskutinisĮrašas),GalimoKlientoDuomenys[Galimo kliento pavadinimas], \"\"),\"\")","v":""},{"$f":"IFERROR(IF(GalimoKlientoDuomenys[Prognozės \npabaiga] <>\"\",IF(GalimoKlientoDuomenys[Prognozės \npabaiga]= \"Sausis\",GalimoKlientoDuomenys[Svertinė \nprognozė],0),\"\"),\"\")","v":""},{"$f":"IFERROR(IF(GalimoKlientoDuomenys[Prognozės \npabaiga] <>\"\",IF(GalimoKlientoDuomenys[Prognozės \npabaiga]= \"Vasaris\",GalimoKlientoDuomenys[Svertinė \nprognozė],0),\"\"),\"\")","v":""},{"$f":"IFERROR(IF(GalimoKlientoDuomenys[Prognozės \npabaiga] <>\"\",IF(GalimoKlientoDuomenys[Prognozės \npabaiga]= \"Kovas\",GalimoKlientoDuomenys[Svertinė \nprognozė],0),\"\"),\"\")","v":""},{"$f":"IFERROR(IF(GalimoKlientoDuomenys[Prognozės \npabaiga] <>\"\",IF(GalimoKlientoDuomenys[Prognozės \npabaiga]= \"Balandis\",GalimoKlientoDuomenys[Svertinė \nprognozė],0),\"\"),\"\")","v":""},{"$f":"IFERROR(IF(GalimoKlientoDuomenys[Prognozės \npabaiga] <>\"\",IF(GalimoKlientoDuomenys[Prognozės \npabaiga]= \"Gegužė\",GalimoKlientoDuomenys[Svertinė \nprognozė],0),\"\"),\"\")","v":""},{"$f":"IFERROR(IF(GalimoKlientoDuomenys[Prognozės \npabaiga] <>\"\",IF(GalimoKlientoDuomenys[Prognozės \npabaiga]= \"Birželis\",GalimoKlientoDuomenys[Svertinė \nprognozė],0),\"\"),\"\")","v":""},{"$f":"IFERROR(IF(GalimoKlientoDuomenys[Prognozės \npabaiga] <>\"\",IF(GalimoKlientoDuomenys[Prognozės \npabaiga]= \"Liepa\",GalimoKlientoDuomenys[Svertinė \nprognozė],0),\"\"),\"\")","v":""},{"$f":"IFERROR(IF(GalimoKlientoDuomenys[Prognozės \npabaiga] <>\"\",IF(GalimoKlientoDuomenys[Prognozės \npabaiga]= \"Rugpjūtis\",GalimoKlientoDuomenys[Svertinė \nprognozė],0),\"\"),\"\")","v":""},{"$f":"IFERROR(IF(GalimoKlientoDuomenys[Prognozės \npabaiga] <>\"\",IF(GalimoKlientoDuomenys[Prognozės \npabaiga]= \"RugsėJis\",GalimoKlientoDuomenys[Svertinė \nprognozė],0),\"\"),\"\")","v":""},{"$f":"IFERROR(IF(GalimoKlientoDuomenys[Prognozės \npabaiga] <>\"\",IF(GalimoKlientoDuomenys[Prognozės \npabaiga]= \"Spalis\",GalimoKlientoDuomenys[Svertinė \nprognozė],0),\"\"),\"\")","v":""},{"$f":"IFERROR(IF(GalimoKlientoDuomenys[Prognozės \npabaiga] <>\"\",IF(GalimoKlientoDuomenys[Prognozės \npabaiga]= \"Lapkritis\",GalimoKlientoDuomenys[Svertinė \nprognozė],0),\"\"),\"\")","v":""},{"$f":"IFERROR(IF(GalimoKlientoDuomenys[Prognozės \npabaiga] <>\"\",IF(GalimoKlientoDuomenys[Prognozės \npabaiga]= \"Gruodis\",GalimoKlientoDuomenys[Svertinė \nprognozė],0),\"\"),\"\")","v":""}]
[null,{"$f":"IFERROR(IF(AND(GalimoKlientoDuomenys[Galimo kliento pavadinimas] <> \"\", ROW(PardavimoPrognozė[Galimo kliento pavadinimas])<>PaskutinisĮrašas),GalimoKlientoDuomenys[Galimo kliento pavadinimas], \"\"),\"\")","v":""},{"$f":"IFERROR(IF(GalimoKlientoDuomenys[Prognozės \npabaiga] <>\"\",IF(GalimoKlientoDuomenys[Prognozės \npabaiga]= \"Sausis\",GalimoKlientoDuomenys[Svertinė \nprognozė],0),\"\"),\"\")","v":""},{"$f":"IFERROR(IF(GalimoKlientoDuomenys[Prognozės \npabaiga] <>\"\",IF(GalimoKlientoDuomenys[Prognozės \npabaiga]= \"Vasaris\",GalimoKlientoDuomenys[Svertinė \nprognozė],0),\"\"),\"\")","v":""},{"$f":"IFERROR(IF(GalimoKlientoDuomenys[Prognozės \npabaiga] <>\"\",IF(GalimoKlientoDuomenys[Prognozės \npabaiga]= \"Kovas\",GalimoKlientoDuomenys[Svertinė \nprognozė],0),\"\"),\"\")","v":""},{"$f":"IFERROR(IF(GalimoKlientoDuomenys[Prognozės \npabaiga] <>\"\",IF(GalimoKlientoDuomenys[Prognozės \npabaiga]= \"Balandis\",GalimoKlientoDuomenys[Svertinė \nprognozė],0),\"\"),\"\")","v":""},{"$f":"IFERROR(IF(GalimoKlientoDuomenys[Prognozės \npabaiga] <>\"\",IF(GalimoKlientoDuomenys[Prognozės \npabaiga]= \"Gegužė\",GalimoKlientoDuomenys[Svertinė \nprognozė],0),\"\"),\"\")","v":""},{"$f":"IFERROR(IF(GalimoKlientoDuomenys[Prognozės \npabaiga] <>\"\",IF(GalimoKlientoDuomenys[Prognozės \npabaiga]= \"Birželis\",GalimoKlientoDuomenys[Svertinė \nprognozė],0),\"\"),\"\")","v":""},{"$f":"IFERROR(IF(GalimoKlientoDuomenys[Prognozės \npabaiga] <>\"\",IF(GalimoKlientoDuomenys[Prognozės \npabaiga]= \"Liepa\",GalimoKlientoDuomenys[Svertinė \nprognozė],0),\"\"),\"\")","v":""},{"$f":"IFERROR(IF(GalimoKlientoDuomenys[Prognozės \npabaiga] <>\"\",IF(GalimoKlientoDuomenys[Prognozės \npabaiga]= \"Rugpjūtis\",GalimoKlientoDuomenys[Svertinė \nprognozė],0),\"\"),\"\")","v":""},{"$f":"IFERROR(IF(GalimoKlientoDuomenys[Prognozės \npabaiga] <>\"\",IF(GalimoKlientoDuomenys[Prognozės \npabaiga]= \"RugsėJis\",GalimoKlientoDuomenys[Svertinė \nprognozė],0),\"\"),\"\")","v":""},{"$f":"IFERROR(IF(GalimoKlientoDuomenys[Prognozės \npabaiga] <>\"\",IF(GalimoKlientoDuomenys[Prognozės \npabaiga]= \"Spalis\",GalimoKlientoDuomenys[Svertinė \nprognozė],0),\"\"),\"\")","v":""},{"$f":"IFERROR(IF(GalimoKlientoDuomenys[Prognozės \npabaiga] <>\"\",IF(GalimoKlientoDuomenys[Prognozės \npabaiga]= \"Lapkritis\",GalimoKlientoDuomenys[Svertinė \nprognozė],0),\"\"),\"\")","v":""},{"$f":"IFERROR(IF(GalimoKlientoDuomenys[Prognozės \npabaiga] <>\"\",IF(GalimoKlientoDuomenys[Prognozės \npabaiga]= \"Gruodis\",GalimoKlientoDuomenys[Svertinė \nprognozė],0),\"\"),\"\")","v":""}]
[null,{"$f":"IFERROR(IF(AND(GalimoKlientoDuomenys[Galimo kliento pavadinimas] <> \"\", ROW(PardavimoPrognozė[Galimo kliento pavadinimas])<>PaskutinisĮrašas),GalimoKlientoDuomenys[Galimo kliento pavadinimas], \"\"),\"\")","v":""},{"$f":"IFERROR(IF(GalimoKlientoDuomenys[Prognozės \npabaiga] <>\"\",IF(GalimoKlientoDuomenys[Prognozės \npabaiga]= \"Sausis\",GalimoKlientoDuomenys[Svertinė \nprognozė],0),\"\"),\"\")","v":""},{"$f":"IFERROR(IF(GalimoKlientoDuomenys[Prognozės \npabaiga] <>\"\",IF(GalimoKlientoDuomenys[Prognozės \npabaiga]= \"Vasaris\",GalimoKlientoDuomenys[Svertinė \nprognozė],0),\"\"),\"\")","v":""},{"$f":"IFERROR(IF(GalimoKlientoDuomenys[Prognozės \npabaiga] <>\"\",IF(GalimoKlientoDuomenys[Prognozės \npabaiga]= \"Kovas\",GalimoKlientoDuomenys[Svertinė \nprognozė],0),\"\"),\"\")","v":""},{"$f":"IFERROR(IF(GalimoKlientoDuomenys[Prognozės \npabaiga] <>\"\",IF(GalimoKlientoDuomenys[Prognozės \npabaiga]= \"Balandis\",GalimoKlientoDuomenys[Svertinė \nprognozė],0),\"\"),\"\")","v":""},{"$f":"IFERROR(IF(GalimoKlientoDuomenys[Prognozės \npabaiga] <>\"\",IF(GalimoKlientoDuomenys[Prognozės \npabaiga]= \"Gegužė\",GalimoKlientoDuomenys[Svertinė \nprognozė],0),\"\"),\"\")","v":""},{"$f":"IFERROR(IF(GalimoKlientoDuomenys[Prognozės \npabaiga] <>\"\",IF(GalimoKlientoDuomenys[Prognozės \npabaiga]= \"Birželis\",GalimoKlientoDuomenys[Svertinė \nprognozė],0),\"\"),\"\")","v":""},{"$f":"IFERROR(IF(GalimoKlientoDuomenys[Prognozės \npabaiga] <>\"\",IF(GalimoKlientoDuomenys[Prognozės \npabaiga]= \"Liepa\",GalimoKlientoDuomenys[Svertinė \nprognozė],0),\"\"),\"\")","v":""},{"$f":"IFERROR(IF(GalimoKlientoDuomenys[Prognozės \npabaiga] <>\"\",IF(GalimoKlientoDuomenys[Prognozės \npabaiga]= \"Rugpjūtis\",GalimoKlientoDuomenys[Svertinė \nprognozė],0),\"\"),\"\")","v":""},{"$f":"IFERROR(IF(GalimoKlientoDuomenys[Prognozės \npabaiga] <>\"\",IF(GalimoKlientoDuomenys[Prognozės \npabaiga]= \"RugsėJis\",GalimoKlientoDuomenys[Svertinė \nprognozė],0),\"\"),\"\")","v":""},{"$f":"IFERROR(IF(GalimoKlientoDuomenys[Prognozės \npabaiga] <>\"\",IF(GalimoKlientoDuomenys[Prognozės \npabaiga]= \"Spalis\",GalimoKlientoDuomenys[Svertinė \nprognozė],0),\"\"),\"\")","v":""},{"$f":"IFERROR(IF(GalimoKlientoDuomenys[Prognozės \npabaiga] <>\"\",IF(GalimoKlientoDuomenys[Prognozės \npabaiga]= \"Lapkritis\",GalimoKlientoDuomenys[Svertinė \nprognozė],0),\"\"),\"\")","v":""},{"$f":"IFERROR(IF(GalimoKlientoDuomenys[Prognozės \npabaiga] <>\"\",IF(GalimoKlientoDuomenys[Prognozės \npabaiga]= \"Gruodis\",GalimoKlientoDuomenys[Svertinė \nprognozė],0),\"\"),\"\")","v":""}]
[null,{"$f":"IFERROR(IF(AND(GalimoKlientoDuomenys[Galimo kliento pavadinimas] <> \"\", ROW(PardavimoPrognozė[Galimo kliento pavadinimas])<>PaskutinisĮrašas),GalimoKlientoDuomenys[Galimo kliento pavadinimas], \"\"),\"\")","v":""},{"$f":"IFERROR(IF(GalimoKlientoDuomenys[Prognozės \npabaiga] <>\"\",IF(GalimoKlientoDuomenys[Prognozės \npabaiga]= \"Sausis\",GalimoKlientoDuomenys[Svertinė \nprognozė],0),\"\"),\"\")","v":""},{"$f":"IFERROR(IF(GalimoKlientoDuomenys[Prognozės \npabaiga] <>\"\",IF(GalimoKlientoDuomenys[Prognozės \npabaiga]= \"Vasaris\",GalimoKlientoDuomenys[Svertinė \nprognozė],0),\"\"),\"\")","v":""},{"$f":"IFERROR(IF(GalimoKlientoDuomenys[Prognozės \npabaiga] <>\"\",IF(GalimoKlientoDuomenys[Prognozės \npabaiga]= \"Kovas\",GalimoKlientoDuomenys[Svertinė \nprognozė],0),\"\"),\"\")","v":""},{"$f":"IFERROR(IF(GalimoKlientoDuomenys[Prognozės \npabaiga] <>\"\",IF(GalimoKlientoDuomenys[Prognozės \npabaiga]= \"Balandis\",GalimoKlientoDuomenys[Svertinė \nprognozė],0),\"\"),\"\")","v":""},{"$f":"IFERROR(IF(GalimoKlientoDuomenys[Prognozės \npabaiga] <>\"\",IF(GalimoKlientoDuomenys[Prognozės \npabaiga]= \"Gegužė\",GalimoKlientoDuomenys[Svertinė \nprognozė],0),\"\"),\"\")","v":""},{"$f":"IFERROR(IF(GalimoKlientoDuomenys[Prognozės \npabaiga] <>\"\",IF(GalimoKlientoDuomenys[Prognozės \npabaiga]= \"Birželis\",GalimoKlientoDuomenys[Svertinė \nprognozė],0),\"\"),\"\")","v":""},{"$f":"IFERROR(IF(GalimoKlientoDuomenys[Prognozės \npabaiga] <>\"\",IF(GalimoKlientoDuomenys[Prognozės \npabaiga]= \"Liepa\",GalimoKlientoDuomenys[Svertinė \nprognozė],0),\"\"),\"\")","v":""},{"$f":"IFERROR(IF(GalimoKlientoDuomenys[Prognozės \npabaiga] <>\"\",IF(GalimoKlientoDuomenys[Prognozės \npabaiga]= \"Rugpjūtis\",GalimoKlientoDuomenys[Svertinė \nprognozė],0),\"\"),\"\")","v":""},{"$f":"IFERROR(IF(GalimoKlientoDuomenys[Prognozės \npabaiga] <>\"\",IF(GalimoKlientoDuomenys[Prognozės \npabaiga]= \"RugsėJis\",GalimoKlientoDuomenys[Svertinė \nprognozė],0),\"\"),\"\")","v":""},{"$f":"IFERROR(IF(GalimoKlientoDuomenys[Prognozės \npabaiga] <>\"\",IF(GalimoKlientoDuomenys[Prognozės \npabaiga]= \"Spalis\",GalimoKlientoDuomenys[Svertinė \nprognozė],0),\"\"),\"\")","v":""},{"$f":"IFERROR(IF(GalimoKlientoDuomenys[Prognozės \npabaiga] <>\"\",IF(GalimoKlientoDuomenys[Prognozės \npabaiga]= \"Lapkritis\",GalimoKlientoDuomenys[Svertinė \nprognozė],0),\"\"),\"\")","v":""},{"$f":"IFERROR(IF(GalimoKlientoDuomenys[Prognozės \npabaiga] <>\"\",IF(GalimoKlientoDuomenys[Prognozės \npabaiga]= \"Gruodis\",GalimoKlientoDuomenys[Svertinė \nprognozė],0),\"\"),\"\")","v":""}]
[null,{"$f":"IFERROR(IF(AND(GalimoKlientoDuomenys[Galimo kliento pavadinimas] <> \"\", ROW(PardavimoPrognozė[Galimo kliento pavadinimas])<>PaskutinisĮrašas),GalimoKlientoDuomenys[Galimo kliento pavadinimas], \"\"),\"\")","v":""},{"$f":"IFERROR(IF(GalimoKlientoDuomenys[Prognozės \npabaiga] <>\"\",IF(GalimoKlientoDuomenys[Prognozės \npabaiga]= \"Sausis\",GalimoKlientoDuomenys[Svertinė \nprognozė],0),\"\"),\"\")","v":""},{"$f":"IFERROR(IF(GalimoKlientoDuomenys[Prognozės \npabaiga] <>\"\",IF(GalimoKlientoDuomenys[Prognozės \npabaiga]= \"Vasaris\",GalimoKlientoDuomenys[Svertinė \nprognozė],0),\"\"),\"\")","v":""},{"$f":"IFERROR(IF(GalimoKlientoDuomenys[Prognozės \npabaiga] <>\"\",IF(GalimoKlientoDuomenys[Prognozės \npabaiga]= \"Kovas\",GalimoKlientoDuomenys[Svertinė \nprognozė],0),\"\"),\"\")","v":""},{"$f":"IFERROR(IF(GalimoKlientoDuomenys[Prognozės \npabaiga] <>\"\",IF(GalimoKlientoDuomenys[Prognozės \npabaiga]= \"Balandis\",GalimoKlientoDuomenys[Svertinė \nprognozė],0),\"\"),\"\")","v":""},{"$f":"IFERROR(IF(GalimoKlientoDuomenys[Prognozės \npabaiga] <>\"\",IF(GalimoKlientoDuomenys[Prognozės \npabaiga]= \"Gegužė\",GalimoKlientoDuomenys[Svertinė \nprognozė],0),\"\"),\"\")","v":""},{"$f":"IFERROR(IF(GalimoKlientoDuomenys[Prognozės \npabaiga] <>\"\",IF(GalimoKlientoDuomenys[Prognozės \npabaiga]= \"Birželis\",GalimoKlientoDuomenys[Svertinė \nprognozė],0),\"\"),\"\")","v":""},{"$f":"IFERROR(IF(GalimoKlientoDuomenys[Prognozės \npabaiga] <>\"\",IF(GalimoKlientoDuomenys[Prognozės \npabaiga]= \"Liepa\",GalimoKlientoDuomenys[Svertinė \nprognozė],0),\"\"),\"\")","v":""},{"$f":"IFERROR(IF(GalimoKlientoDuomenys[Prognozės \npabaiga] <>\"\",IF(GalimoKlientoDuomenys[Prognozės \npabaiga]= \"Rugpjūtis\",GalimoKlientoDuomenys[Svertinė \nprognozė],0),\"\"),\"\")","v":""},{"$f":"IFERROR(IF(GalimoKlientoDuomenys[Prognozės \npabaiga] <>\"\",IF(GalimoKlientoDuomenys[Prognozės \npabaiga]= \"RugsėJis\",GalimoKlientoDuomenys[Svertinė \nprognozė],0),\"\"),\"\")","v":""},{"$f":"IFERROR(IF(GalimoKlientoDuomenys[Prognozės \npabaiga] <>\"\",IF(GalimoKlientoDuomenys[Prognozės \npabaiga]= \"Spalis\",GalimoKlientoDuomenys[Svertinė \nprognozė],0),\"\"),\"\")","v":""},{"$f":"IFERROR(IF(GalimoKlientoDuomenys[Prognozės \npabaiga] <>\"\",IF(GalimoKlientoDuomenys[Prognozės \npabaiga]= \"Lapkritis\",GalimoKlientoDuomenys[Svertinė \nprognozė],0),\"\"),\"\")","v":""},{"$f":"IFERROR(IF(GalimoKlientoDuomenys[Prognozės \npabaiga] <>\"\",IF(GalimoKlientoDuomenys[Prognozės \npabaiga]= \"Gruodis\",GalimoKlientoDuomenys[Svertinė \nprognozė],0),\"\"),\"\")","v":""}]
[null,{"$f":"IFERROR(IF(AND(GalimoKlientoDuomenys[Galimo kliento pavadinimas] <> \"\", ROW(PardavimoPrognozė[Galimo kliento pavadinimas])<>PaskutinisĮrašas),GalimoKlientoDuomenys[Galimo kliento pavadinimas], \"\"),\"\")","v":""},{"$f":"IFERROR(IF(GalimoKlientoDuomenys[Prognozės \npabaiga] <>\"\",IF(GalimoKlientoDuomenys[Prognozės \npabaiga]= \"Sausis\",GalimoKlientoDuomenys[Svertinė \nprognozė],0),\"\"),\"\")","v":""},{"$f":"IFERROR(IF(GalimoKlientoDuomenys[Prognozės \npabaiga] <>\"\",IF(GalimoKlientoDuomenys[Prognozės \npabaiga]= \"Vasaris\",GalimoKlientoDuomenys[Svertinė \nprognozė],0),\"\"),\"\")","v":""},{"$f":"IFERROR(IF(GalimoKlientoDuomenys[Prognozės \npabaiga] <>\"\",IF(GalimoKlientoDuomenys[Prognozės \npabaiga]= \"Kovas\",GalimoKlientoDuomenys[Svertinė \nprognozė],0),\"\"),\"\")","v":""},{"$f":"IFERROR(IF(GalimoKlientoDuomenys[Prognozės \npabaiga] <>\"\",IF(GalimoKlientoDuomenys[Prognozės \npabaiga]= \"Balandis\",GalimoKlientoDuomenys[Svertinė \nprognozė],0),\"\"),\"\")","v":""},{"$f":"IFERROR(IF(GalimoKlientoDuomenys[Prognozės \npabaiga] <>\"\",IF(GalimoKlientoDuomenys[Prognozės \npabaiga]= \"Gegužė\",GalimoKlientoDuomenys[Svertinė \nprognozė],0),\"\"),\"\")","v":""},{"$f":"IFERROR(IF(GalimoKlientoDuomenys[Prognozės \npabaiga] <>\"\",IF(GalimoKlientoDuomenys[Prognozės \npabaiga]= \"Birželis\",GalimoKlientoDuomenys[Svertinė \nprognozė],0),\"\"),\"\")","v":""},{"$f":"IFERROR(IF(GalimoKlientoDuomenys[Prognozės \npabaiga] <>\"\",IF(GalimoKlientoDuomenys[Prognozės \npabaiga]= \"Liepa\",GalimoKlientoDuomenys[Svertinė \nprognozė],0),\"\"),\"\")","v":""},{"$f":"IFERROR(IF(GalimoKlientoDuomenys[Prognozės \npabaiga] <>\"\",IF(GalimoKlientoDuomenys[Prognozės \npabaiga]= \"Rugpjūtis\",GalimoKlientoDuomenys[Svertinė \nprognozė],0),\"\"),\"\")","v":""},{"$f":"IFERROR(IF(GalimoKlientoDuomenys[Prognozės \npabaiga] <>\"\",IF(GalimoKlientoDuomenys[Prognozės \npabaiga]= \"RugsėJis\",GalimoKlientoDuomenys[Svertinė \nprognozė],0),\"\"),\"\")","v":""},{"$f":"IFERROR(IF(GalimoKlientoDuomenys[Prognozės \npabaiga] <>\"\",IF(GalimoKlientoDuomenys[Prognozės \npabaiga]= \"Spalis\",GalimoKlientoDuomenys[Svertinė \nprognozė],0),\"\"),\"\")","v":""},{"$f":"IFERROR(IF(GalimoKlientoDuomenys[Prognozės \npabaiga] <>\"\",IF(GalimoKlientoDuomenys[Prognozės \npabaiga]= \"Lapkritis\",GalimoKlientoDuomenys[Svertinė \nprognozė],0),\"\"),\"\")","v":""},{"$f":"IFERROR(IF(GalimoKlientoDuomenys[Prognozės \npabaiga] <>\"\",IF(GalimoKlientoDuomenys[Prognozės \npabaiga]= \"Gruodis\",GalimoKlientoDuomenys[Svertinė \nprognozė],0),\"\"),\"\")","v":""}]
[null,"Suma",{"$f":"SUBTOTAL(109,PardavimoPrognozė[Sausio \nprognozė])","v":{"v":270000,"d":"270,000 EUR"}},{"$f":"SUBTOTAL(109,PardavimoPrognozė[Vasario \nprognozė])","v":{"v":20000,"d":"20,000 EUR"}},{"$f":"SUBTOTAL(109,PardavimoPrognozė[Kovao\nprognozė])","v":{"v":20000,"d":"20,000 EUR"}},{"$f":"SUBTOTAL(109,PardavimoPrognozė[Balandio\nprognozė])","v":{"v":0,"d":"0 EUR"}},{"$f":"SUBTOTAL(109,PardavimoPrognozė[Gegužo\nprognozė])","v":{"v":0,"d":"0 EUR"}},{"$f":"SUBTOTAL(109,PardavimoPrognozė[Birželio\nprognozė])","v":{"v":0,"d":"0 EUR"}},{"$f":"SUBTOTAL(109,PardavimoPrognozė[Liepo\nprognozė])","v":{"v":0,"d":"0 EUR"}},{"$f":"SUBTOTAL(109,PardavimoPrognozė[Rugpjūtio \nprognozė])","v":{"v":0,"d":"0 EUR"}},{"$f":"SUBTOTAL(109,PardavimoPrognozė[RugsėJio\nprognozė])","v":{"v":0,"d":"0 EUR"}},{"$f":"SUBTOTAL(109,PardavimoPrognozė[Spalio\nprognozė])","v":{"v":0,"d":"0 EUR"}},{"$f":"SUBTOTAL(109,PardavimoPrognozė[Lapkritio\nprognozė])","v":{"v":0,"d":"0 EUR"}},{"$f":"SUBTOTAL(109,PardavimoPrognozė[Gruodio\nprognozė])","v":{"v":0,"d":"0 EUR"}}]
[null,"Bendra suma",{"$f":"C20","v":{"v":270000,"d":"270,000 EUR"}},{"$f":"C21+D20","v":{"v":290000,"d":"290,000 EUR"}},{"$f":"D21+E20","v":{"v":310000,"d":"310,000 EUR"}},{"$f":"E21+F20","v":{"v":310000,"d":"310,000 EUR"}},{"v":310000,"d":"310,000 EUR"},{"v":310000,"d":"310,000 EUR"},{"v":310000,"d":"310,000 EUR"},{"v":310000,"d":"310,000 EUR"},{"v":310000,"d":"310,000 EUR"},{"v":310000,"d":"310,000 EUR"},{"v":310000,"d":"310,000 EUR"},{"$f":"M21+N20","v":{"v":310000,"d":"310,000 EUR"}}]

{"sheet":"Mėnesio svertinė prognozė","index":2,"n_rows":3,"n_cols":2,"rows_kept":3}
[null,{"$f":"Įmonės_pavadinimas","v":"Įmonės pavadinimas"}]
[null,"Mėnesio svertinė prognozė"]
[null," "]